bitfinex-derivatives/quotes_BTCF0:USTF0_20251009
["timestamp","ask_amount","ask_price","bid_price","bid_amount"]
[1759978468412,1.50305487,121700.0,121690.0,0.83941272]
[1759978469714,1.50305487,121700.0,121690.0,0.09137272]
[1759978469920,1.50305487,121700.0,121690.0,0.83941272]
[1759978471213,0.96612813,121700.0,121690.0,0.83937272]
[1759978471413,1.51505487,121700.0,121690.0,0.82066067]
[1759978472018,1.51305487,121700.0,121690.0,0.82066067]
[1759978472316,1.51405487,121700.0,121690.0,0.82066067]
[1759978472512,1.51405487,121700.0,121690.0,0.07266067]
[1759978472813,0.1185416,121660.0,121650.0,0.49766383]
[1759978473014,0.13710834,121660.0,121650.0,1.4284511]
[1759978473318,0.13710834,121660.0,121650.0,0.6804511]
[1759978473719,0.13710834,121660.0,121650.0,1.4284511]
[1759978473916,0.14110834,121660.0,121650.0,0.6804511]
[1759978474214,0.14310834,121660.0,121650.0,1.5106294]
[1759978474719,0.11978834,121660.0,121650.0,0.49766603]
[1759978475021,0.11978834,121660.0,121650.0,1.77559277]
[1759978475216,0.03761674,121660.0,121650.0,1.77559277]
[1759978475615,0.10440561,121660.0,121650.0,1.42759277]
[1759978475815,0.03761674,121660.0,121650.0,1.42759277]
[1759978476013,0.02456674,121660.0,121650.0,2.44055614]
[1759978476924,0.03761674,121660.0,121650.0,2.17559277]
[1759978477120,0.03761674,121660.0,121650.0,1.42759277]
[1759978477320,0.03761674,121660.0,121650.0,2.17559277]
[1759978477620,0.03761674,121660.0,121650.0,1.64566603]
[1759978477822,0.03761674,121660.0,121650.0,2.17559277]
[1759978478422,0.03761674,121660.0,121650.0,1.42759277]
[1759978478624,0.03761674,121660.0,121650.0,2.17559277]
[1759978479022,0.11978834,121660.0,121650.0,1.02759277]
[1759978479220,0.11978834,121660.0,121650.0,1.77559277]
[1759978480124,0.03761674,121660.0,121650.0,1.77559277]
[1759978485128,0.03761674,121660.0,121650.0,1.77555277]
[1759978485523,0.03761674,121660.0,121650.0,1.02759277]
[1759978485727,0.03761674,121660.0,121650.0,1.77555277]
[1759978485919,0.01905,121660.0,121650.0,1.24562603]
[1759978486324,0.01905,121660.0,121650.0,1.77555277]
[1759978486518,0.01905,121660.0,121650.0,1.02759277]
[1759978486726,0.1012216,121660.0,121650.0,1.77555277]
[1759978486920,0.1012216,121660.0,121650.0,1.02759277]
[1759978487227,0.1012216,121660.0,121650.0,1.77555277]
[1759978488132,0.01905,121660.0,121650.0,1.77555277]
[1759978490531,0.01905,121660.0,121650.0,1.02759277]
[1759978490836,0.006,121660.0,121650.0,2.44047614]
[1759978491224,0.006,121660.0,121650.0,1.64558603]
[1759978491846,0.006,121660.0,121650.0,2.17551277]
[1759978492035,0.006,121660.0,121650.0,2.44047614]
[1759978492235,0.01305,121680.0,121670.0,0.0821648]
[1759978492433,0.01305,121680.0,121670.0,1.5516848]
[1759978492630,0.01305,121680.0,121670.0,2.08161154]
[1759978492926,0.0952081,121680.0,121670.0,1.33369154]
[1759978493130,0.0952081,121680.0,121670.0,2.08161154]
[1759978493635,0.0952081,121680.0,121670.0,0.8037648]
[1759978493825,0.0972081,121680.0,121670.0,2.08161154]
[1759978494334,0.1012081,121680.0,121670.0,2.08161154]
[1759978494734,0.1012081,121680.0,121670.0,1.33369154]
[1759978494934,0.1012081,121680.0,121670.0,2.08161154]
[1759978496931,0.01905,121680.0,121670.0,2.08157154]
[1759978498333,0.006,121680.0,121670.0,2.74653491]
[1759978498527,0.01305,121690.0,121680.0,0.0821581]
[1759978498732,0.01305,121690.0,121680.0,1.23784821]
[1759978498929,0.0952013,121690.0,121680.0,1.23784821]
[1759978499233,0.01305,121690.0,121680.0,1.72072484]
[1759978500036,0.1002013,121690.0,121680.0,1.72472484]
[1759978500233,0.01805,121690.0,121680.0,1.72472484]
[1759978500635,0.1002013,121690.0,121680.0,1.72472484]
[1759978500832,0.1002013,121690.0,121680.0,1.98968821]
[1759978501430,0.1002013,121690.0,121680.0,1.24184821]
[1759978501737,0.1002013,121690.0,121680.0,1.72472484]
[1759978502038,0.1002013,121690.0,121680.0,1.98964821]
[1759978503931,0.1002013,121690.0,121680.0,1.1947581]
[1759978504128,0.1002013,121690.0,121680.0,1.98964821]
[1759978504334,0.1002013,121690.0,121680.0,1.72468484]
[1759978504734,0.1002013,121690.0,121680.0,1.98960821]
[1759978504939,0.01805,121690.0,121680.0,1.98960821]
[1759978505233,0.01805,121690.0,121680.0,2.25400821]
[1759978505435,0.01805,121690.0,121680.0,1.4591181]
[1759978505735,0.01805,121690.0,121680.0,1.98960821]
[1759978506038,0.1002013,121690.0,121680.0,1.24184821]
[1759978506436,0.1002013,121690.0,121680.0,1.98960821]
[1759978506635,0.1002013,121690.0,121680.0,1.72464484]
[1759978507541,0.1002013,121690.0,121680.0,1.72460484]
[1759978508845,0.1224013,121690.0,121680.0,0.3648]
[1759978509141,0.5224013,121690.0,121680.0,0.89472674]
[1759978509342,0.5224013,121690.0,121680.0,0.4469581]
[1759978509638,0.5224013,121690.0,121680.0,1.72460484]
[1759978511440,0.5224013,121690.0,121680.0,1.64244674]
[1759978511636,0.5224013,121690.0,121680.0,0.4469581]
[1759978511830,0.5224013,121690.0,121680.0,1.72460484]
[1759978512535,0.5224013,121690.0,121680.0,0.89472674]
[1759978512742,0.5224013,121690.0,121680.0,1.01668337]
[1759978512743,0.54090863,121690.0,121680.0,1.01668337]
[1759978512942,0.54090863,121690.0,121680.0,1.28164674]
[1759978513332,0.54090863,121690.0,121680.0,1.01668337]
[1759978514041,0.54090863,121690.0,121680.0,0.75172]
[1759978514241,0.54090863,121690.0,121680.0,1.01664337]
[1759978514736,0.54090863,121690.0,121680.0,1.28160674]
[1759978515342,0.54090863,121690.0,121680.0,1.01664337]
[1759978515839,0.54090863,121690.0,121680.0,0.75168]
[1759978516144,0.54090863,121690.0,121680.0,1.01664337]
[1759978516743,0.54090863,121690.0,121680.0,0.26896337]
[1759978517045,0.54090863,121690.0,121680.0,1.28160674]
[1759978517244,0.54090863,121690.0,121680.0,0.53392674]
[1759978517637,0.54090863,121690.0,121680.0,1.28160674]
[1759978518237,0.54090863,121690.0,121680.0,1.36376484]
[1759978518443,0.54090863,121690.0,121680.0,0.8338381]
[1759978518744,0.54090863,121690.0,121680.0,1.36376484]
[1759978518944,0.54090863,121690.0,121680.0,1.28160674]
[1759978519244,0.54090863,121690.0,121680.0,0.53392674]
[1759978519542,0.54090863,121690.0,121680.0,0.75168]
[1759978519839,0.54090863,121690.0,121680.0,1.28160674]
[1759978522146,0.54090863,121690.0,121680.0,0.53392674]
[1759978522449,0.54090863,121690.0,121680.0,0.75168]
[1759978522647,0.54090863,121690.0,121680.0,1.28160674]
[1759978522942,0.54090863,121690.0,121680.0,0.26896337]
[1759978523153,0.805872,121690.0,121680.0,1.01664337]
[1759978523548,0.54090863,121690.0,121680.0,1.01664337]
[1759978523750,0.805872,121690.0,121680.0,1.01664337]
[1759978523951,0.54090863,121690.0,121680.0,1.10498649]
[1759978526041,0.54090863,121690.0,121680.0,0.75164]
[1759978526248,0.54090863,121690.0,121680.0,1.10494649]
[1759978526444,0.54090863,121690.0,121680.0,0.004]
[1759978526750,0.54090863,121690.0,121680.0,0.75164]
[1759978526751,0.90170863,121690.0,121680.0,0.75164]
[1759978527351,0.54090863,121690.0,121680.0,0.75164]
[1759978527752,0.54090863,121690.0,121680.0,0.004]
[1759978527952,0.54090863,121690.0,121680.0,0.75164]
[1759978529953,1.25501512,121690.0,121680.0,0.004]
[1759978530142,1.25501512,121690.0,121680.0,0.75164]
[1759978530344,0.90170863,121690.0,121680.0,0.75164]
[1759978530744,1.25501512,121690.0,121680.0,0.75164]
[1759978534854,1.25501512,121690.0,121680.0,0.004]
[1759978535054,1.25501512,121690.0,121680.0,0.75164]
[1759978537361,1.25489691,121690.0,121680.0,0.75164]
[1759978538358,1.25489691,121690.0,121680.0,0.004]
[1759978538550,1.25489691,121690.0,121680.0,0.7516]
[1759978539551,0.90159042,121690.0,121680.0,0.7516]
[1759978539761,1.25489691,121690.0,121680.0,0.7516]
[1759978541260,0.90159042,121690.0,121680.0,0.7516]
[1759978541654,1.25489691,121690.0,121680.0,0.7516]
[1759978542252,0.50159042,121690.0,121680.0,0.004]
[1759978542463,0.14079042,121690.0,121680.0,0.71810649]
[1759978542656,0.14079042,121690.0,121680.0,0.3648]
[1759978542865,0.14079042,121690.0,121680.0,1.46570649]
[1759978544565,0.14079042,121690.0,121680.0,1.44699544]
[1759978545465,0.14079042,121690.0,121680.0,1.09368895]
[1759978545666,0.14079042,121690.0,121680.0,1.44699544]
[1759978546461,0.14079042,121690.0,121680.0,0.69939544]
[1759978546663,0.14079042,121690.0,121680.0,1.44695544]
[1759978546862,0.14079042,121690.0,121680.0,0.69939544]
[1759978547167,0.14079042,121690.0,121680.0,1.44695544]
[1759978547968,0.14079042,121690.0,121680.0,1.09360895]
[1759978548165,0.14079042,121690.0,121680.0,1.44691544]
[1759978548768,0.14079042,121690.0,121680.0,0.69939544]
[1759978548960,0.14079042,121690.0,121680.0,1.84691544]
[1759978549163,0.14079042,121690.0,121680.0,0.74608895]
[1759978549360,0.14079042,121690.0,121680.0,1.84691544]
[1759978552076,0.1224013,121690.0,121680.0,1.84691544]
[1759978552273,0.14098591,121690.0,121680.0,1.84691544]
[1759978552574,0.03663461,121690.0,121680.0,2.24389093]
[1759978552971,0.03663737,121690.0,121680.0,2.24389093]
[1759978553176,0.03663737,121690.0,121680.0,1.89058444]
[1759978553479,0.01805,121690.0,121680.0,1.89058444]
[1759978555080,0.03662847,121690.0,121680.0,1.49641093]
[1759978555382,0.005,121690.0,121680.0,2.24385093]
[1759978555979,0.018,121690.0,121680.0,1.49641093]
[1759978556171,0.018,121690.0,121680.0,3.59019795]
[1759978556372,0.018,121690.0,121680.0,4.29677093]
[1759978556674,0.018,121690.0,121680.0,3.89673093]
[1759978557978,0.018,121690.0,121680.0,3.89669093]
[1759978558885,0.018,121690.0,121680.0,3.14925093]
[1759978559184,0.018,121690.0,121680.0,3.89661093]
[1759978560182,0.018,121690.0,121680.0,1.09641093]
[1759978560385,0.1001513,121690.0,121680.0,1.49641093]
[1759978560676,0.1213413,121690.0,121680.0,1.49042444]
[1759978561282,0.1213413,121690.0,121680.0,0.74310444]
[1759978561471,0.1213413,121690.0,121680.0,1.49042444]
[1759978561678,0.1213413,121690.0,121680.0,1.84373093]
[1759978562375,0.1001513,121690.0,121680.0,1.09641093]
[1759978562578,0.1001513,121690.0,121680.0,1.84373093]
[1759978562984,0.018,121690.0,121680.0,1.84373093]
[1759978564174,0.1001513,121690.0,121680.0,1.84373093]
[1759978565077,0.018,121690.0,121680.0,1.84373093]
[1759978565284,0.1001513,121690.0,121680.0,1.84373093]
[1759978565483,0.018,121690.0,121680.0,1.84373093]
[1759978565684,0.018,121690.0,121680.0,2.24373093]
[1759978565888,0.018,121690.0,121680.0,2.50809093]
[1759978566890,0.018,121690.0,121680.0,1.80147795]
[1759978567080,0.018,121690.0,121680.0,2.24369093]
[1759978569386,0.018,121690.0,121680.0,1.49641093]
[1759978569590,0.018,121690.0,121680.0,2.24365093]
[1759978571992,0.01315,121710.0,121700.0,0.0821446]
[1759978572188,0.01315,121710.0,121700.0,1.51035758]
[1759978572494,0.01315,121720.0,121710.0,0.0821378]
[1759978572694,0.01315,121720.0,121710.0,1.14955078]
[1759978572892,0.01315,121720.0,121710.0,1.54955078]
[1759978573099,0.01365,121730.0,121720.0,0.0821311]
[1759978573292,0.01365,121730.0,121720.0,4.01481306]
[1759978573598,0.01365,121730.0,121720.0,4.01477306]
[1759978574594,0.03265,121730.0,121720.0,4.01677306]
[1759978574789,0.03265,121730.0,121720.0,1.21697306]
[1759978574993,0.03265,121730.0,121720.0,4.01665306]
[1759978575193,0.03265,121730.0,121720.0,3.26949306]
[1759978575490,0.03565,121730.0,121720.0,1.21797306]
[1759978575691,0.05798,121730.0,121720.0,1.61178657]
[1759978576287,0.03565,121730.0,121720.0,1.61178657]
[1759978576487,0.03565,121730.0,121720.0,1.21797306]
[1759978576694,0.03565,121730.0,121720.0,1.96505306]
[1759978577687,1e-07,121730.0,121720.0,1.61797306]
[1759978577886,0.01365,121740.0,121730.0,0.0821243]
[1759978578093,0.01365,121740.0,121730.0,1.54331079]
[1759978578688,0.01365,121750.0,121740.0,0.0821176]
[1759978578992,0.01365,121760.0,121750.0,0.0821108]
[1759978579191,0.01365,121760.0,121750.0,1.89656378]
[1759978579389,0.01365,121760.0,121750.0,1.14952378]
[1759978579589,0.01365,121760.0,121750.0,1.89656378]
[1759978579790,0.01365,121760.0,121750.0,1.14952378]
[1759978579989,0.01365,121760.0,121750.0,3.59549729]
[1759978580194,0.1250841,121760.0,121750.0,0.71410649]
[1759978580394,0.1250841,121760.0,121750.0,1.46114649]
[1759978580395,0.14347868,121760.0,121750.0,1.46114649]
[1759978580592,0.0821108,121750.0,121740.0,0.71410649]
[1759978580896,0.13648444,121750.0,121740.0,0.71410649]
[1759978581096,0.13648444,121750.0,121740.0,3.51326649]
[1759978581596,0.53648444,121750.0,121740.0,2.05216]
[1759978581796,0.53648444,121750.0,121740.0,2.79912]
[1759978581996,0.53648444,121750.0,121740.0,3.15242649]
[1759978582195,0.53648444,121750.0,121740.0,0.35330649]
[1759978582602,0.54148444,121750.0,121740.0,1.10126649]
[1759978583499,0.54848444,121750.0,121740.0,1.10226649]
[1759978584000,0.54848444,121750.0,121740.0,0.53143346]
[1759978584202,0.54848444,121750.0,121740.0,1.27839346]
[1759978584702,0.54848444,121750.0,121740.0,0.53143346]
[1759978584902,0.54848444,121750.0,121740.0,1.27835346]
[1759978586203,0.54848444,121750.0,121740.0,0.74892]
[1759978586392,0.54848444,121750.0,121740.0,1.27835346]
[1759978586794,0.54848444,121750.0,121740.0,0.53143346]
[1759978587103,0.54848444,121750.0,121740.0,1.27835346]
[1759978587298,0.54848444,121750.0,121740.0,0.53143346]
[1759978587700,0.54848444,121750.0,121740.0,1.27835346]
[1759978587902,0.81320117,121750.0,121740.0,0.26671673]
[1759978588204,1.17400117,121750.0,121740.0,0.7104892]
[1759978588400,1.17400117,121750.0,121740.0,0.97520593]
[1759978588705,1.17400117,121750.0,121740.0,1.01163673]
[1759978588905,0.90928444,121750.0,121740.0,1.01163673]
[1759978589206,1.17400117,121750.0,121740.0,1.01163673]
[1759978591403,0.54848444,121750.0,121740.0,1.01163673]
[1759978591608,1.17400117,121750.0,121740.0,1.01163673]
[1759978592204,0.81320117,121750.0,121740.0,1.01163673]
[1759978592405,0.81320117,121750.0,121740.0,0.26471673]
[1759978592708,1.17400117,121750.0,121740.0,1.01163673]
[1759978593910,1.17400117,121750.0,121740.0,0.26471673]
[1759978594107,1.17400117,121750.0,121740.0,1.01159673]
[1759978594604,0.90928444,121750.0,121740.0,1.01159673]
[1759978594812,0.54848444,121750.0,121740.0,0.26471673]
[1759978595016,0.81320117,121750.0,121740.0,0.26471673]
[1759978595204,0.81320117,121750.0,121740.0,1.27631346]
[1759978595605,0.54848444,121750.0,121740.0,1.27631346]
[1759978595802,0.54848444,121750.0,121740.0,1.01159673]
[1759978596308,0.1162676,121740.0,121730.0,0.3608]
[1759978596506,0.13466124,121740.0,121730.0,1.37239673]
[1759978597611,0.13966124,121740.0,121730.0,1.37339673]
[1759978598614,0.14366124,121740.0,121730.0,0.62751673]
[1759978598809,0.14366124,121740.0,121730.0,1.37439673]
[1759978599210,0.40837797,121740.0,121730.0,0.3628]
[1759978599410,1.16917797,121740.0,121730.0,0.26671673]
[1759978599710,1.4338947,121740.0,121730.0,0.74888]
[1759978600206,1.4338947,121740.0,121730.0,0.001]
[1759978600411,0.1162811,121720.0,121710.0,0.3608]
[1759978600611,0.13467474,121720.0,121710.0,1.03808]
[1759978601005,0.13467474,121720.0,121710.0,0.67728]
[1759978601305,0.1162878,121710.0,121700.0,0.3608]
[1759978601502,0.1162878,121710.0,121700.0,3.68923346]
[1759978601503,0.13468144,121710.0,121700.0,3.68923346]
[1759978601700,0.13468144,121710.0,121700.0,0.89023346]
[1759978602103,0.13468144,121710.0,121700.0,1.63711346]
[1759978602509,0.13468144,121710.0,121700.0,1.98397479]
[1759978602711,0.13468144,121710.0,121700.0,1.90183019]
[1759978603012,0.13568144,121710.0,121700.0,1.10868]
[1759978603208,0.13568144,121710.0,121700.0,1.63811346]
[1759978603410,0.13568144,121710.0,121700.0,0.89123346]
[1759978603812,0.13568144,121710.0,121700.0,1.63815346]
[1759978604007,0.13568144,121710.0,121700.0,1.64115346]
[1759978604409,0.13568144,121710.0,121700.0,0.89423346]
[1759978604609,0.13668144,121710.0,121700.0,0.89423346]
[1759978605012,0.13668144,121710.0,121700.0,1.64115346]
[1759978605211,0.13668144,121710.0,121700.0,0.89423346]
[1759978605611,0.13668144,121710.0,121700.0,1.64115346]
[1759978605807,0.13672092,121710.0,121700.0,1.37643673]
[1759978606011,0.13672092,121710.0,121700.0,0.004]
[1759978606012,0.80143765,121710.0,121700.0,0.004]
[1759978606219,0.53672092,121710.0,121700.0,0.004]
[1759978606516,0.53672092,121710.0,121700.0,0.7469201]
[1759978607014,0.89752092,121710.0,121700.0,0.7469201]
[1759978607515,1.16223765,121710.0,121700.0,0.7469201]
[1759978607716,1.16223765,121710.0,121660.0,2.67783673]
[1759978607717,0.1170313,121690.0,121680.0,0.26471673]
[1759978608011,0.0821648,121670.0,121660.0,0.3608]
[1759978608213,0.1170516,121660.0,121650.0,0.41548773]
[1759978608413,0.1170516,121660.0,121650.0,0.94492119]
[1759978608614,0.13599065,121660.0,121650.0,1.69188119]
[1759978609216,0.13599065,121660.0,121650.0,0.41548773]
[1759978609410,0.13599065,121660.0,121650.0,1.16244773]
[1759978609810,0.13799065,121660.0,121650.0,1.16344773]
[1759978610010,0.13799065,121660.0,121650.0,1.69288119]
[1759978610312,0.13799065,121660.0,121650.0,1.69292119]
[1759978610512,0.13799065,121660.0,121650.0,0.97592119]
[1759978610513,0.14199065,121660.0,121650.0,0.97592119]
[1759978611019,0.14199065,121660.0,121650.0,0.44648773]
[1759978611418,0.50279065,121660.0,121650.0,0.83272773]
[1759978611720,0.14199065,121660.0,121650.0,0.08568773]
[1759978611916,0.14199065,121660.0,121650.0,0.83272773]
[1759978612114,0.54199065,121660.0,121650.0,0.83272773]
[1759978612411,0.90279065,121660.0,121650.0,0.08568773]
[1759978612616,0.90079065,121660.0,121650.0,0.83192773]
[1759978612917,1.16150738,121660.0,121650.0,0.80192773]
[1759978613219,0.89779065,121660.0,121650.0,0.80292773]
[1759978613415,0.89879065,121660.0,121650.0,0.80492773]
[1759978613610,1.16350738,121660.0,121650.0,1.06964446]
[1759978614008,0.89879065,121660.0,121650.0,0.32240446]
[1759978614217,0.89879065,121660.0,121650.0,0.05768773]
[1759978614422,0.89879065,121660.0,121650.0,1.06956446]
[1759978614609,0.49879065,121660.0,121650.0,0.32240446]
[1759978614808,0.49879065,121660.0,121610.0,0.38388]
[1759978614809,0.1170786,121620.0,121610.0,0.38388]
[1759978615013,0.1170854,121610.0,121600.0,0.02308]
[1759978615314,0.4965637,121610.0,121600.0,0.28779673]
[1759978615520,0.76128043,121610.0,121600.0,0.7728]
[1759978615725,0.76128043,121610.0,121600.0,0.74972]
[1759978615915,0.4965637,121610.0,121600.0,0.7728]
[1759978616514,0.1357637,121610.0,121600.0,1.18744137]
[1759978616822,0.5005637,121610.0,121600.0,0.79976]
[1759978617010,0.5005637,121610.0,121600.0,0.79972]
[1759978617208,0.91520507,121610.0,121600.0,0.027]
[1759978617515,1.31520507,121610.0,121600.0,0.027]
[1759978617716,1.31520507,121610.0,121600.0,0.48588]
[1759978618216,0.91720507,121610.0,121600.0,0.027]
[1759978618420,0.5025637,121610.0,121600.0,0.77704]
[1759978618623,0.91720507,121610.0,121600.0,0.77704]
[1759978618814,0.91720507,121610.0,121600.0,0.027]
[1759978619014,0.91720507,121610.0,121600.0,0.77704]
[1759978619224,0.5025637,121610.0,121600.0,0.80032]
[1759978619616,0.1417637,121610.0,121600.0,0.82552137]
[1759978619814,0.006,121610.0,121600.0,1.31952347]
[1759978620115,0.006,121610.0,121600.0,2.07008347]
[1759978620317,0.006,121610.0,121600.0,1.31952347]
[1759978620616,0.0882054,121610.0,121600.0,1.23731137]
[1759978620825,0.01898,121610.0,121600.0,1.6438921]
[1759978621121,0.006,121610.0,121600.0,2.07032347]
[1759978621324,0.006,121610.0,121600.0,0.9048821]
[1759978621718,0.006,121610.0,121600.0,2.07028347]
[1759978621918,0.0882054,121610.0,121600.0,2.07028347]
[1759978623124,0.0882054,121610.0,121600.0,1.31952347]
[1759978623320,0.1239054,121610.0,121600.0,0.81088]
[1759978623624,0.1239054,121610.0,121600.0,2.05833347]
[1759978623625,0.0882054,121610.0,121600.0,2.05833347]
[1759978623923,0.0882054,121610.0,121600.0,2.07012347]
[1759978624818,0.0882054,121610.0,121600.0,1.31952347]
[1759978625015,0.0882054,121610.0,121600.0,2.07012347]
[1759978625416,0.0882054,121610.0,121600.0,2.07004347]
[1759978625621,0.0882054,121610.0,121600.0,2.07008347]
[1759978625823,0.0882054,121610.0,121600.0,2.07004347]
[1759978626019,0.0882054,121610.0,121600.0,1.31952347]
[1759978626417,0.0882054,121610.0,121600.0,2.07004347]
[1759978626620,0.006,121610.0,121600.0,1.73416484]
[1759978626822,0.0951675,121640.0,121630.0,0.0218]
[1759978627121,0.55595233,121640.0,121630.0,1.13376]
[1759978627722,0.55595233,121640.0,121630.0,0.3826]
[1759978627930,0.55595233,121640.0,121630.0,1.13372]
[1759978628226,0.55695233,121640.0,121630.0,1.13372]
[1759978628427,0.55695233,121640.0,121630.0,0.3826]
[1759978628628,0.95695233,121640.0,121630.0,0.75112]
[1759978629023,0.95695233,121640.0,121630.0,0.77292]
[1759978629419,0.55895233,121640.0,121630.0,0.80224137]
[1759978629624,0.53713233,121640.0,121630.0,1.55324137]
[1759978630118,0.60185496,121640.0,121630.0,1.55324137]
[1759978630325,0.60185496,121640.0,121630.0,1.1386]
[1759978630531,0.62367496,121640.0,121630.0,1.13852]
[1759978630833,0.55895233,121640.0,121630.0,1.55316137]
[1759978631827,0.55895233,121640.0,121630.0,1.19232137]
[1759978632228,0.55895233,121640.0,121630.0,0.77768]
[1759978633327,0.55895233,121640.0,121630.0,0.0268]
[1759978633533,0.55895233,121640.0,121630.0,0.77764]
[1759978633834,0.55895233,121640.0,121630.0,0.0268]
[1759978634131,0.55895233,121640.0,121630.0,0.77744]
[1759978634526,0.55895233,121640.0,121630.0,0.7774]
[1759978634928,0.91975233,121640.0,121630.0,0.0268]
[1759978635128,0.91975233,121640.0,121630.0,0.77736]
[1759978635334,1.7343937,121640.0,121630.0,0.005]
[1759978635634,1.7343937,121640.0,121630.0,0.45512]
[1759978635831,1.31975233,121640.0,121630.0,0.77744]
[1759978636031,0.55895233,121640.0,121630.0,0.52363317]
[1759978636242,0.0960718,121630.0,121620.0,0.84596758]
[1759978636434,0.11503663,121630.0,121620.0,1.59680758]
[1759978637431,0.01896483,121630.0,121620.0,1.59680758]
[1759978637635,0.0971696,121640.0,121630.0,0.0821918]
[1759978637837,0.53805311,121640.0,121630.0,0.3608]
[1759978638035,0.53805311,121640.0,121630.0,1.11156]
[1759978638430,0.53805311,121640.0,121630.0,1.1937518]
[1759978638630,0.51623311,121640.0,121630.0,0.85763317]
[1759978638837,0.51423311,121640.0,121630.0,1.60835317]
[1759978639140,0.51423311,121640.0,121630.0,1.60831317]
[1759978639345,0.51423311,121640.0,121630.0,0.85763317]
[1759978639540,0.51623311,121640.0,121630.0,1.61331317]
[1759978639741,0.53805311,121640.0,121630.0,0.3658]
[1759978639939,0.53805311,121640.0,121630.0,1.1164]
[1759978640138,0.53805311,121640.0,121630.0,1.1184]
[1759978640344,0.53905311,121640.0,121630.0,0.3678]
[1759978640546,0.53905311,121640.0,121630.0,1.1184]
[1759978640847,0.53905311,121640.0,121630.0,0.7576]
[1759978641848,0.60631984,121640.0,121630.0,0.7574]
[1759978643037,0.60631984,121640.0,121630.0,0.8395918]
[1759978643242,0.60631984,121640.0,121630.0,0.7574]
[1759978643844,0.96711984,121640.0,121630.0,0.7574]
[1759978644148,0.96711984,121640.0,121630.0,0.75724]
[1759978644347,0.96711984,121640.0,121630.0,0.007]
[1759978644539,0.96711984,121640.0,121630.0,0.002]
[1759978644848,0.1178986,121620.0,121610.0,0.3608]
[1759978645050,0.13696211,121620.0,121610.0,1.05844]
[1759978645349,0.13696211,121620.0,121610.0,1.1931654]
[1759978645551,0.13696211,121620.0,121610.0,0.4430054]
[1759978645847,0.13696211,121620.0,121610.0,1.1934054]
[1759978646447,0.13996211,121620.0,121610.0,1.57984785]
[1759978646644,0.13996211,121620.0,121610.0,1.2094054]
[1759978646851,0.13996211,121620.0,121610.0,1.57984785]
[1759978647250,0.14196211,121620.0,121610.0,1.57984785]
[1759978647445,0.14196211,121620.0,121610.0,1.2094054]
[1759978648244,0.14196211,121620.0,121610.0,1.2093254]
[1759978648753,0.14196211,121620.0,121610.0,0.3768]
[1759978648952,0.14196211,121620.0,121610.0,1.2092054]
[1759978650150,0.14196211,121620.0,121610.0,0.4590054]
[1759978650347,0.14196211,121620.0,121610.0,0.3768]
[1759978650553,0.14196211,121620.0,121610.0,1.12684]
[1759978650752,0.14196211,121620.0,121610.0,1.2090454]
[1759978651553,0.14196211,121620.0,121610.0,1.1268]
[1759978651753,0.14196211,121620.0,121610.0,1.2090054]
[1759978651956,0.14196211,121620.0,121610.0,0.4590054]
[1759978652154,0.14196211,121620.0,121610.0,1.2089654]
[1759978652345,0.50276211,121620.0,121610.0,0.016]
[1759978652551,0.50276211,121620.0,121610.0,0.76592]
[1759978652754,0.50276211,121620.0,121610.0,0.016]
[1759978652953,0.50276211,121620.0,121610.0,0.76588]
[1759978653651,0.14196211,121620.0,121610.0,0.8480854]
[1759978653956,0.14196211,121620.0,121610.0,1.2088854]
[1759978654853,0.14196211,121620.0,121610.0,0.4590054]
[1759978655148,0.14196211,121620.0,121610.0,1.2087254]
[1759978655654,0.14196211,121620.0,121610.0,0.4590054]
[1759978655851,0.05976351,121620.0,121610.0,1.2086854]
[1759978656051,0.03794351,121620.0,121610.0,1.57912785]
[1759978656252,0.02406351,121620.0,121610.0,0.82944785]
[1759978656453,0.02406351,121620.0,121610.0,1.22944785]
[1759978656653,0.15439708,121650.0,121640.0,0.0821851]
[1759978656654,0.0960585,121650.0,121640.0,0.0821851]
[1759978656858,0.16515224,121650.0,121640.0,1.54455105]
[1759978657162,0.01909374,121650.0,121640.0,1.19471105]
[1759978657460,0.01909374,121650.0,121640.0,3.99859105]
[1759978657654,0.01909374,121650.0,121640.0,4.063432]
[1759978657854,0.0133,121670.0,121660.0,0.0821716]
[1759978658051,0.5254648,121670.0,121660.0,1.56385405]
[1759978658461,0.1154648,121670.0,121660.0,1.56385405]
[1759978658855,0.1381248,121670.0,121660.0,0.3608]
[1759978659056,0.1381248,121670.0,121640.0,0.3608]
[1759978659057,0.0954783,121650.0,121640.0,0.3608]
[1759978659253,0.0133,121660.0,121650.0,0.0821783]
[1759978659454,0.0133,121660.0,121650.0,1.96406075]
[1759978660862,0.0163,121660.0,121650.0,1.96506075]
[1759978661965,0.0273,121660.0,121650.0,1.96706075]
[1759978662360,0.0273,121660.0,121650.0,0.4459783]
[1759978662559,0.0273,121660.0,121650.0,1.1966583]
[1759978662866,0.0273,121660.0,121650.0,1.56710075]
[1759978663058,0.0273,121660.0,121650.0,1.21642075]
[1759978663263,0.014,121660.0,121650.0,4.02070075]
[1759978664360,0.014,121660.0,121650.0,3.27010075]
[1759978664662,0.014,121660.0,121650.0,4.02062075]
[1759978664864,0.02791,121660.0,121650.0,0.81642075]
[1759978665062,0.02791,121660.0,121650.0,1.56690075]
[1759978665565,0.02791,121660.0,121650.0,0.81642075]
[1759978665759,0.02791,121660.0,121650.0,1.56694075]
[1759978665962,0.02791,121660.0,121650.0,0.81642075]
[1759978666157,0.014,121660.0,121650.0,1.21642075]
[1759978666465,0.014,121660.0,121650.0,1.96690075]
[1759978666668,0.014,121660.0,121650.0,1.21642075]
[1759978666967,0.014,121660.0,121650.0,1.96686075]
[1759978668364,0.02791,121660.0,121650.0,1.5964183]
[1759978668570,0.02791,121660.0,121650.0,4.02026075]
[1759978669371,0.02791,121660.0,121650.0,3.6497783]
[1759978669670,0.02791,121660.0,121650.0,4.02022075]
[1759978672366,0.02791,121660.0,121650.0,4.01994075]
[1759978672979,0.02791,121660.0,121650.0,1.21642075]
[1759978673181,0.02791,121660.0,121650.0,4.01974075]
[1759978673575,0.02791,121660.0,121650.0,1.21642075]
[1759978673775,0.02791,121660.0,121650.0,4.01970075]
[1759978675976,0.02791,121660.0,121650.0,4.01950075]
[1759978677269,0.014,121660.0,121650.0,4.01950075]
[1759978677476,0.014,121660.0,121650.0,4.01938075]
[1759978680479,0.014,121660.0,121650.0,4.01930075]
[1759978680982,0.0961716,121660.0,121650.0,1.21642075]
[1759978681183,0.1100816,121660.0,121650.0,4.01906075]
[1759978681384,0.1100816,121660.0,121650.0,0.8459783]
[1759978681776,0.1100816,121660.0,121650.0,0.81642075]
[1759978682283,0.1100816,121660.0,121650.0,3.61898075]
[1759978683480,0.1319416,121660.0,121650.0,0.4459783]